bitfinex/quotes_SOLUSD_20260120
["timestamp","ask_amount","ask_price","bid_price","bid_amount"]
[1768914662050,5.39379195,128.92,128.9,2.08931196]
[1768914662421,5.39379195,128.92,128.89,7.75853365]
[1768914662929,5.39379195,128.92,128.89,9.84784561]
[1768914663239,5.50758068,128.96,128.91,2.08931196]
[1768914663847,3.6954563,128.97,128.92,2.08931196]
[1768914664150,5.50758068,128.97,128.92,2.08931196]
[1768914664723,5.50452843,128.96,128.92,2.08931196]
[1768914665146,5.50452843,128.96,128.92,9.84600404]
[1768914665328,1.80907213,128.96,128.93,2.08931196]
[1768914665654,5.50452843,128.96,128.93,2.08931196]
[1768914670734,5.48693721,128.98,128.94,2.08931196]
[1768914672442,1.79148091,128.98,128.94,9.84450704]
[1768914672639,1.79148091,128.98,128.95,2.08931196]
[1768914675642,1.79148091,128.98,128.94,2.08931196]
[1768914675864,1.77772486,128.97,128.94,2.08931196]
[1768914676654,1.77506772,128.96,128.92,32.7]
[1768914676853,1.77506772,128.96,128.93,2.08931196]
[1768914686165,1.77506772,128.96,128.92,2.01957343]
[1768914686358,1.74777834,128.95,128.92,2.01957343]
[1768914690666,1.73868384,128.94,128.9,2.01957343]
[1768914691361,5.4363723,128.94,128.91,2.01957343]
[1768914692468,1.73868384,128.94,128.91,2.01957343]
[1768914693550,1.73213351,128.93,128.91,2.01957343]
[1768914693960,5.42982197,128.94,128.91,2.01957343]
[1768914694360,1.73000004,128.93,128.91,2.01957343]
[1768914695170,1.73000004,128.93,128.9,2.01957343]
[1768914695375,1.72789106,128.92,128.89,2.01957343]
[1768914696047,1.72580632,128.91,128.88,2.01957343]
[1768914697870,1.72580632,128.91,128.88,9.7787163]
[1768914698177,1.72374551,128.92,128.89,2.01957343]
[1768914698372,6.9208494,128.93,128.89,2.01957343]
[1768914700377,1.71770404,128.92,128.89,2.01957343]
[1768914701473,5.41342476,128.93,128.89,2.01957343]
[1768914701661,1.7157363,128.93,128.89,2.01957343]
[1768914701866,1.7157363,128.93,128.9,2.01957343]
[1768914703472,1.7157363,128.93,128.89,1.89866936]
[1768914704370,5.41342476,128.93,128.89,1.89866936]
[1768914704577,1.70808877,128.93,128.89,1.89866936]
[1768914705884,1.70623147,128.94,128.9,1.89866936]
[1768914706956,5.40391993,128.94,128.9,1.89866936]
[1768914707483,1.70258062,128.93,128.9,1.89866936]
[1768914711271,1.70258062,128.93,128.89,9.65694002]
[1768914711778,1.70258062,128.93,128.9,1.89866936]
[1768914716582,5.40026908,128.93,128.9,1.89866936]
[1768914717762,1.70258062,128.93,128.9,1.89866936]
[1768914717965,3.69768846,128.92,128.89,1.8446282]
[1768914718182,1.68394142,128.91,128.88,1.8446282]
[1768914718785,1.68394142,128.91,128.87,1.8446282]
[1768914719114,5.38004994,128.9,128.87,1.8446282]
[1768914719894,1.68079968,128.91,128.87,1.8446282]
[1768914720793,1.67925582,128.93,128.88,1.8446282]
[1768914720965,6.8747731,128.93,128.89,1.8446282]
[1768914721167,1.6777297,128.95,128.89,1.8446282]
[1768914721468,10.58893379,128.94,128.89,1.8446282]
[1768914721667,5.37541816,128.95,128.89,1.8446282]
[1768914721890,10.5897827,128.94,128.9,1.8446282]
[1768914722094,1.6762211,128.97,128.92,1.8446282]
[1768914722262,5.19669346,128.96,128.92,1.8446282]
[1768914722474,1.6762211,128.97,128.93,1.8446282]
[1768914722680,5.19727144,128.96,128.93,1.8446282]
[1768914723091,5.37390956,128.97,128.93,1.8446282]
[1768914723473,5.37241829,128.98,128.93,1.8446282]
[1768914723683,5.19845398,128.97,128.93,1.8446282]
[1768914724793,6.87170967,128.97,128.93,1.8446282]
[1768914726579,1.67035801,128.96,128.91,7.75721894]
[1768914726891,5.19845398,128.95,128.92,1.8446282]
[1768914727099,1.67035801,128.96,128.92,1.8446282]
[1768914727335,6.86856441,128.96,128.92,9.60136886]
[1768914727503,1.67035801,128.96,128.93,1.8446282]
[1768914728013,6.8693174,128.96,128.93,1.8446282]
[1768914728306,5.19895939,128.96,128.93,1.8446282]
[1768914730098,10.56140754,128.96,128.92,1.8446282]
[1768914730296,5.1998576,128.95,128.92,1.81462822]
[1768914731096,1.66475969,128.96,128.92,1.81462822]
[1768914731300,6.86474637,128.96,128.92,7.75672448]
[1768914731620,5.19998668,128.96,128.92,7.75672448]
[1768914731917,10.59107519,128.95,128.9,7.75750253]
[1768914732082,1.69205604,128.94,128.9,7.75750253]
[1768914732285,1.69205604,128.94,128.91,1.8446282]
[1768914732810,1.69205604,128.93,128.9,1.8446282]
[1768914733687,1.69072747,128.94,128.9,1.8446282]
[1768914733886,6.8910712,128.94,128.9,1.8446282]
[1768914735505,1.68811594,128.92,128.88,1.8446282]
[1768914735681,5.38853965,128.9,128.86,1.8446282]
[1768914735887,5.38853965,128.89,128.86,1.8446282]
[1768914736205,1.68811594,128.89,128.86,1.8446282]
[1768914736810,1.6868154,128.9,128.86,1.8446282]
[1768914736991,5.38723911,128.9,128.86,1.8446282]
[1768914737191,1.68552979,128.89,128.86,1.8446282]
[1768914737599,5.3859535,128.89,128.86,1.8446282]
[1768914738188,1.68425895,128.9,128.86,1.8446282]
[1768914738388,10.57982158,128.9,128.86,1.8446282]
[1768914738613,5.38468266,128.9,128.86,1.8446282]
[1768914740314,27.14882806,128.92,128.85,1.9446282]
[1768914740521,5.3821846,128.89,128.85,1.9446282]
[1768914741614,1.68176089,128.89,128.85,1.9446282]
[1768914741920,5.3821846,128.89,128.85,1.9446282]
[1768914742120,1.68176089,128.89,128.85,1.9446282]
[1768914742344,5.3821846,128.89,128.85,1.9446282]
[1768914742827,1.68176089,128.89,128.85,1.9446282]
[1768914742997,5.3821846,128.89,128.85,1.9446282]
[1768914743202,1.68176089,128.89,128.85,1.9446282]
[1768914743399,5.3821846,128.89,128.85,9.70559008]
[1768914744305,1.68176089,128.89,128.85,9.70559008]
[1768914744624,5.3821846,128.89,128.85,1.9446282]
[1768914745407,1.67460387,128.88,128.85,1.9446282]
[1768914745717,9.4326273,128.9,128.85,1.9446282]
[1768914745914,3.70042371,128.89,128.85,1.9446282]
[1768914746521,5.37388223,128.89,128.85,9.7055359]
[1768914748121,5.37163086,128.87,128.85,0.1]
[1768914748420,3.70042371,128.87,128.85,1.87414281]
[1768914748729,5.37163086,128.86,128.84,0.4991405]
[1768914749308,3.70042371,128.86,128.84,0.4991405]
[1768914749503,1.67010082,128.87,128.84,0.4991405]
[1768914749905,3.70042371,128.86,128.84,0.4991405]
[1768914750101,1.67010082,128.87,128.84,0.4991405]
[1768914750308,5.37052453,128.87,128.84,0.4991405]
[1768914751523,1.66792613,128.87,128.84,2.37328331]
[1768914751820,3.70042371,128.86,128.84,0.4991405]
[1768914754302,5.36518059,128.85,128.82,1.87414281]
[1768914754820,3.70042371,128.85,128.82,1.87414281]
[1768914755011,9.42520366,128.86,128.82,1.87414281]
[1768914755213,13.12562737,128.86,128.82,1.87414281]
[1768914756222,5.36518059,128.86,128.82,1.87414281]
[1768914756413,13.12556802,128.86,128.82,1.87414281]
[1768914757124,9.42514431,128.86,128.82,1.87414281]
[1768914757316,5.36518059,128.86,128.82,1.87414281]
[1768914757629,1.66169558,128.84,128.79,7.76425228]
[1768914757825,5.36211929,128.84,128.8,1.87414281]
[1768914758734,1.66169558,128.84,128.8,1.87414281]
[1768914758920,5.36211929,128.84,128.8,1.87414281]
[1768914759432,3.70042371,128.83,128.8,1.87414281]
[1768914759633,5.36013658,128.82,128.78,1.87414281]
[1768914759827,5.36013658,128.81,128.78,1.87414281]
[1768914760031,1.65971287,128.83,128.78,1.87414281]
[1768914760332,5.35916227,128.82,128.79,1.87414281]
[1768914761314,13.12100303,128.82,128.78,1.87414281]
[1768914761520,3.70042371,128.81,128.78,1.87414281]
[1768914761710,3.64042372,128.81,128.78,1.87414281]
[1768914762231,5.35819916,128.82,128.78,1.87414281]
[1768914763238,7.76245799,128.83,128.79,1.85257049]
[1768914763239,5.35537567,128.83,128.79,1.85257049]
[1768914763441,3.70042371,128.83,128.79,1.85257049]
[1768914763641,13.1172298,128.84,128.79,1.85257049]
[1768914764042,5.35537567,128.84,128.79,1.85257049]
[1768914764236,3.70042371,128.84,128.79,1.85257049]
[1768914764620,5.35445605,128.85,128.8,1.85257049]
[1768914765026,3.70042371,128.84,128.8,1.85257049]
[1768914765233,1.65403234,128.85,128.8,7.7638341]
[1768914765443,1.65403234,128.85,128.81,1.85257049]
[1768914765640,3.70042371,128.84,128.81,1.85257049]
[1768914765843,5.35354699,128.82,128.78,1.85257049]
[1768914766029,7.76156473,128.84,128.79,1.85257049]
[1768914766234,1.65222466,128.83,128.79,1.85257049]
[1768914766530,5.35264837,128.84,128.8,1.85257049]
[1768914766736,3.70042371,128.84,128.8,1.85257049]
[1768914767426,48.4544529,128.88,128.82,1.85257049]
[1768914767427,9.41139772,128.87,128.82,1.85257049]
[1768914767739,3.70042371,128.86,128.82,1.85257049]
[1768914767929,13.11182143,128.87,128.82,1.85257049]
[1768914768940,13.11182143,128.87,128.82,9.61529597]
[1768914769239,9.41139772,128.87,128.83,1.85257049]
[1768914769428,5.35176007,128.87,128.83,1.85257049]
[1768914769748,3.70042371,128.87,128.83,1.85257049]
[1768914769929,11.46019737,128.87,128.83,1.85257049]
[1768914770131,13.10892958,128.87,128.83,1.85257049]
[1768914770441,9.40850587,128.87,128.83,1.85257049]
[1768914770628,13.10892958,128.87,128.83,1.85257049]
[1768914770835,9.40850587,128.87,128.83,1.85257049]
[1768914771037,13.10892958,128.87,128.83,1.85257049]
[1768914771437,11.46019737,128.87,128.83,1.85257049]
[1768914771825,11.46019737,128.87,128.81,1.85257049]
[1768914771826,3.70042371,128.85,128.81,1.85257049]
[1768914772026,5.34830774,128.86,128.81,1.85257049]
[1768914773245,5.34830774,128.86,128.81,9.61580565]
[1768914773544,5.34830774,128.86,128.82,1.92875553]
[1768914773721,1.64788403,128.86,128.82,1.92875553]
[1768914773923,5.34830774,128.86,128.82,1.92875553]
[1768914774325,1.64788403,128.86,128.82,1.92875553]
[1768914774525,9.40832606,128.86,128.82,1.92875553]
[1768914774819,13.10874977,128.86,128.82,1.92875553]
[1768914776746,1.64299564,128.84,128.81,1.92875553]
[1768914777829,5.34263706,128.85,128.81,1.92875553]
[1768914778231,1.64221335,128.85,128.82,1.92875553]
[1768914779045,5.34263706,128.85,128.82,1.92875553]
[1768914779247,1.64221335,128.85,128.82,1.92875553]
[1768914781248,13.10364513,128.85,128.82,1.92875553]
[1768914781448,5.33959671,128.83,128.8,1.92875553]
[1768914781750,1.639173,128.83,128.8,1.92875553]
[1768914781947,1.639173,128.82,128.78,1.92875553]
[1768914782153,1.639173,128.81,128.77,1.92875553]
[1768914782342,5.33959671,128.81,128.77,1.92875553]
[1768914782548,1.639173,128.81,128.77,1.92875553]
[1768914782745,5.33959671,128.81,128.77,1.92875553]
[1768914784830,7.76355511,128.81,128.75,1.92875553]
[1768914785037,3.70042371,128.78,128.75,1.92875553]
[1768914785238,5.27669367,128.78,128.75,1.92875553]
[1768914785764,1.63626995,128.78,128.75,1.92875553]
[1768914786263,1.6355649,128.77,128.74,1.92875553]
[1768914786563,5.33598861,128.79,128.74,1.92875553]
[1768914786741,5.33598861,128.79,128.75,1.92875553]
[1768914787656,1.63486796,128.8,128.75,9.69567511]
[1768914787961,5.33529167,128.8,128.76,1.92875553]
[1768914788260,13.09930237,128.8,128.76,1.92875553]
[1768914788855,9.39891904,128.8,128.76,1.92875553]
[1768914789155,13.09934275,128.8,128.76,1.92875553]
[1768914790045,5.3339217,128.79,128.75,1.92875553]
[1768914790242,1.63282479,128.79,128.75,1.92875553]
[1768914790660,1.63282479,128.77,128.73,1.92875553]
[1768914790967,5.2332485,128.74,128.7,1.92875553]
[1768914791338,1.53282479,128.74,128.7,1.92875553]
[1768914791545,1.4728248,128.74,128.7,1.92875553]
[1768914791862,5.16011704,128.78,128.69,7.87046583]
[1768914791863,17.02,128.76,128.69,0.1]
[1768914792062,9.19758845,128.75,128.69,0.1]
[1768914792365,7.76709678,128.75,128.69,2.02875553]
[1768914792564,3.70042371,128.74,128.69,2.02875553]
[1768914792768,7.76709678,128.75,128.69,2.02875553]
[1768914792964,3.71257514,128.73,128.69,2.02875553]
[1768914793261,3.71257514,128.72,128.69,0.1]
[1768914793448,3.71257514,128.73,128.69,2.02875553]
[1768914793655,1.47085123,128.73,128.69,2.02875553]
[1768914794053,5.18342637,128.74,128.69,2.02875553]
[1768914794250,1.47020842,128.75,128.7,1.92875553]
[1768914794762,5.18278356,128.75,128.7,1.92875553]
[1768914795065,26.25618398,128.77,128.71,1.92875553]
[1768914795268,3.71257514,128.76,128.71,1.92875553]
[1768914795646,5.18214814,128.76,128.71,1.92875553]
[1768914796058,1.469573,128.76,128.71,1.92875553]
[1768914796469,5.18214814,128.76,128.71,1.92875553]
[1768914797066,1.469573,128.76,128.71,1.92875553]
[1768914797270,5.18214814,128.76,128.71,1.92875553]
[1768914798570,1.469573,128.76,128.71,1.92875553]
[1768914798868,12.9456001,128.77,128.72,1.92875553]
[1768914799872,5.17880217,128.76,128.72,1.92875553]
[1768914800071,1.46622703,128.76,128.72,1.92875553]
[1768914800771,9.23267507,128.76,128.72,1.92875553]
[1768914801070,1.46461053,128.73,128.69,0.1]
[1768914801384,1.46461053,128.73,128.69,2.02875553]
[1768914801549,1.46461053,128.74,128.69,2.02875553]
[1768914802457,5.17718567,128.74,128.69,2.02875553]
[1768914802652,12.94485345,128.74,128.69,2.02875553]
[1768914803174,9.23227831,128.74,128.69,2.02875553]
[1768914803479,12.94485345,128.74,128.69,2.02875553]
[1768914803666,1.46225474,128.73,128.69,2.02875553]
[1768914804564,1.46148745,128.72,128.69,0.1]
[1768914804759,5.17406259,128.71,128.69,0.1]
[1768914805757,12.94202677,128.73,128.69,2.06554293]
[1768914806072,9.22945163,128.73,128.69,2.06554293]
[1768914806256,11.4812978,128.73,128.69,2.06554293]
[1768914806462,7.76872266,128.73,128.69,2.06554293]
[1768914806670,7.76759359,128.74,128.69,2.06554293]
[1768914806851,12.94014793,128.74,128.69,2.06554293]
[1768914807270,1.45923804,128.73,128.69,2.06554293]
[1768914807772,5.17181318,128.73,128.69,2.06554293]
[1768914807950,3.71257514,128.72,128.69,2.06554293]
[1768914808152,1.45923804,128.73,128.69,2.06554293]
[1768914808554,3.71257514,128.72,128.69,2.06554293]
[1768914808958,9.22788171,128.73,128.69,2.06554293]
[1768914809162,12.94045685,128.73,128.69,2.06554293]
[1768914809580,11.48121881,128.73,128.69,2.06554293]
[1768914810478,1.45706526,128.72,128.66,1.96554293]
[1768914810669,1.35706526,128.71,128.66,1.96554293]
[1768914810877,5.0696404,128.72,128.68,1.96554293]
[1768914811078,1.35706526,128.72,128.68,1.96554293]
[1768914811372,11.48121881,128.73,128.68,1.96554293]
[1768914811579,12.83757638,128.73,128.68,1.96554293]
[1768914811956,9.12500124,128.73,128.68,1.96554293]
[1768914813484,12.83757638,128.73,128.68,1.96554293]
[1768914813982,9.12500124,128.73,128.68,1.96554293]
[1768914814380,9.12292658,128.73,128.68,1.96554293]
[1768914814691,12.83550172,128.73,128.68,1.96554293]
[1768914815963,9.12292658,128.73,128.68,1.96554293]
[1768914816285,12.83550172,128.73,128.68,1.96554293]
[1768914816476,9.12292658,128.73,128.68,1.96554293]
[1768914816675,12.83550172,128.73,128.68,1.96554293]
[1768914818061,9.12292658,128.73,128.68,1.96554293]
[1768914818273,12.83550172,128.73,128.68,1.96554293]
[1768914818981,1.35428291,128.73,128.69,1.96554293]
[1768914819390,7.76765871,128.74,128.69,1.96554293]
[1768914819680,12.82972067,128.75,128.7,1.96554293]
[1768914819883,3.71257514,128.74,128.67,1.96554293]
[1768914820060,5.34408856,128.72,128.63,3.71257514]
[1768914820261,3.71257514,128.7,128.64,1.96554293]
[1768914820877,5.34408856,128.72,128.64,1.96554293]
[1768914821061,3.71257514,128.69,128.64,1.96554293]
[1768914821263,5.34408856,128.72,128.64,1.96554293]
[1768914821462,3.71257514,128.69,128.64,1.96554293]
[1768914821686,11.37332865,128.69,128.65,1.96554293]
[1768914822268,11.26332161,128.69,128.65,1.96554293]
[1768914822773,3.71257514,128.69,128.65,1.96554293]
[1768914823381,3.71257514,128.67,128.62,1.98777972]
[1768914823576,3.71257514,128.64,128.62,0.04381228]
[1768914823789,3.71257514,128.65,128.62,0.04381228]
[1768914824083,3.71257514,128.65,128.62,1.98777972]
[1768914824675,11.48439876,128.67,128.62,1.98777972]
[1768914824868,24.79164881,128.68,128.63,1.94396744]
[1768914825083,7.77164881,128.68,128.63,1.94396744]
[1768914825285,7.77000777,128.7,128.64,1.94396744]
[1768914825489,11.48258291,128.7,128.64,1.94396744]
[1768914825681,11.48258291,128.7,128.65,1.94396744]
[1768914827691,3.71257514,128.66,128.62,1.98777972]
[1768914827892,3.71257514,128.67,128.62,1.98777972]
[1768914828080,3.71257514,128.66,128.62,1.98777972]
[1768914828279,3.71257514,128.68,128.62,1.98777972]
[1768914828488,3.71257514,128.68,128.63,1.94396744]
[1768914829288,11.48439452,128.67,128.63,1.94396744]
[1768914829592,3.71257514,128.66,128.63,1.94396744]
[1768914830189,7.77181938,128.67,128.63,1.94396744]
[1768914830379,3.71257514,128.66,128.63,1.94396744]
[1768914830580,11.48439452,128.67,128.63,1.94396744]
[1768914830777,7.77181938,128.67,128.63,1.94396744]
[1768914830992,11.48439452,128.67,128.63,1.94396744]
[1768914831199,11.51363081,128.67,128.63,1.94396744]
[1768914831492,0.02923629,128.66,128.62,0.04381228]
[1768914831676,3.71257514,128.65,128.62,0.04381228]
[1768914832074,3.74181143,128.66,128.62,0.04381228]
[1768914832417,3.74181143,128.66,128.62,1.98777972]
[1768914832598,3.71257514,128.65,128.62,1.98777972]
[1768914832977,3.74181143,128.66,128.62,1.98777972]
[1768914833386,3.71257514,128.67,128.62,1.98777972]
[1768914833580,3.71257514,128.67,128.62,9.76256546]
[1768914833786,3.71257514,128.67,128.63,1.98259283]
[1768914835498,3.71257514,128.65,128.62,0.04381228]
[1768914835702,3.71257514,128.65,128.62,2.02640511]
[1768914836084,0.05202023,128.66,128.62,2.02640511]
[1768914836085,3.76459537,128.66,128.62,2.02640511]
[1768914836382,11.48445068,128.67,128.62,2.02640511]
[1768914836976,3.71257514,128.66,128.62,2.02640511]
[1768914837380,11.48510126,128.66,128.62,2.02640511]
[1768914838299,7.77252612,128.66,128.62,2.02640511]
[1768914838503,11.48510126,128.66,128.62,2.02640511]
[1768914838901,11.55017336,128.66,128.62,2.02640511]
[1768914839076,11.48510126,128.66,128.62,2.02640511]
[1768914839705,3.71257514,128.64,128.62,0.04381228]
[1768914840473,3.71257514,128.63,128.59,1.98259283]
[1768914840678,3.71257514,128.62,128.59,1.98259283]
[1768914841507,0.03386709,128.67,128.62,1.98259283]
[1768914841701,8.76770063,128.68,128.62,1.01998174]
[1768914841901,3.71257514,128.66,128.62,1.01998174]
[1768914842278,3.71257514,128.65,128.59,7.77640309]
[1768914842504,1.00058444,128.66,128.6,7.77569894]
[1768914842807,4.71315958,128.66,128.6,7.77569894]
[1768914842971,4.71315958,128.66,128.6,11.48827408]
[1768914843382,3.71257514,128.63,128.58,0.3991405]
[1768914843586,3.71257514,128.62,128.58,2.38173333]
[1768914843787,8.77923234,128.63,128.58,2.38173333]
[1768914844009,3.71257514,128.62,128.58,2.38173333]
[1768914844213,12.49147749,128.63,128.58,2.38173333]
[1768914845492,8.77890235,128.63,128.58,2.38173333]
[1768914845809,4.72519754,128.62,128.58,0.3991405]
[1768914846108,1.0126224,128.62,128.58,2.38173333]
[1768914846486,4.72519754,128.62,128.58,2.38173333]
[1768914847214,1.0126224,128.62,128.58,2.38173333]
[1768914847434,4.72519754,128.62,128.58,2.38173333]
[1768914847713,1.01776582,128.65,128.59,1.98259283]
[1768914847911,1.01776582,128.65,128.61,1.98259283]
[1768914848095,4.73034096,128.65,128.61,1.98259283]
[1768914848288,4.7315061,128.67,128.62,1.98259283]
[1768914848999,4.7315061,128.66,128.62,1.98259283]
[1768914850110,1.02008271,128.69,128.63,1.98259283]
[1768914850425,4.73379638,128.68,128.63,1.98259283]
[1768914851009,3.71257514,128.67,128.63,1.98259283]
[1768914851404,4.73492183,128.67,128.63,1.98259283]
[1768914852514,4.73492183,128.67,128.63,9.75679425]
[1768914852916,4.73492183,128.67,128.63,1.98259283]
[1768914854721,1.02564606,128.69,128.64,1.98259283]
[1768914854905,6.17736059,128.69,128.64,1.98259283]
[1768914855106,6.17736059,128.69,128.65,1.98259283]
[1768914855623,1.02564606,128.69,128.65,9.75558077]
[1768914856115,1.02564606,128.69,128.65,1.98259283]
[1768914856828,25.83779798,128.7,128.65,1.98259283]
[1768914857007,21.7831925,128.7,128.66,1.98259283]
[1768914858008,18.06778297,128.7,128.66,1.98259283]
[1768914858210,4.7431925,128.7,128.66,1.98259283]
[1768914858722,1.02987107,128.72,128.69,1.98259283]
[1768914858927,6.18744392,128.73,128.69,1.98259283]
[1768914859104,13.95567466,128.73,128.69,1.98259283]
[1768914859304,5.15757285,128.72,128.69,1.98259283]
[1768914860430,4.7452806,128.73,128.69,1.98259283]
[1768914860610,5.16031335,128.72,128.69,1.98259283]
[1768914861724,4.7452806,128.73,128.69,1.98259283]
[1768914862027,4.7452806,128.73,128.63,15.7]
[1768914862028,1.03291414,128.69,128.62,1.98259283]
[1768914862225,4.74931481,128.67,128.62,11.49024512]
[1768914862532,3.71540953,128.68,128.63,1.98259283]
[1768914863034,9.12360216,128.68,128.63,1.98259283]
[1768914863531,9.12360216,128.68,128.64,1.96697004]
[1768914864203,8.80466328,128.69,128.64,1.96697004]
[1768914864403,14.29100461,128.68,128.64,1.96697004]
[1768914864624,9.12360216,128.68,128.64,1.96697004]
[1768914864818,14.29097024,128.67,128.64,1.96697004]
[1768914865028,9.12360216,128.67,128.64,1.96697004]
[1768914866837,16.89545591,128.67,128.64,1.96697004]
[1768914867011,9.12360216,128.67,128.64,1.96697004]
[1768914868337,1.03681093,128.68,128.64,1.96697004]
[1768914868528,9.12360216,128.67,128.64,1.96697004]
[1768914870740,7.77142382,128.68,128.64,1.96697004]
[1768914870930,14.53095208,128.72,128.68,1.96697004]
[1768914871246,10.16681384,128.69,128.65,1.96697004]
[1768914871545,6.21413217,128.68,128.64,1.96697004]
[1768914871725,1.04321168,128.68,128.64,1.96697004]
[1768914871922,1.04321168,128.69,128.65,1.96697004]
[1768914872253,6.21413058,128.69,128.65,1.96697004]
[1768914872541,5.1709189,128.68,128.65,1.96697004]
[1768914873542,17.93762662,128.69,128.65,1.96697004]
[1768914873716,5.17142213,128.68,128.65,1.96697004]
[1768914874036,9.12360216,128.68,128.65,1.96697004]
[1768914875136,9.12360216,128.68,128.62,16.89809764]
[1768914875137,17.9416133,128.68,128.63,1.96697004]
[1768914875443,10.17024561,128.67,128.63,1.96697004]
[1768914877039,1.04664345,128.67,128.63,1.96697004]
[1768914877337,10.17024561,128.67,128.63,1.96697004]
[1768914878439,9.12360216,128.67,128.63,1.96697004]
[1768914878942,10.17271735,128.65,128.61,1.96697004]
[1768914879839,9.12360216,128.65,128.61,1.96697004]
[1768914880338,9.12360216,128.65,128.6,1.96697004]
[1768914880339,10.17431822,128.64,128.6,1.96697004]
[1768914881349,1.05071606,128.64,128.6,1.96697004]
[1768914881517,17.94838346,128.64,128.6,1.96697004]
[1768914882949,12.54287616,128.64,128.6,1.96697004]
[1768914885338,8.8247813,128.64,128.6,1.96697004]
[1768914885642,12.54287616,128.64,128.6,1.96697004]
[1768914887154,29.58746338,128.65,128.6,1.96697004]
[1768914887347,5.16856521,128.64,128.6,1.96697004]
[1768914888245,17.04,128.65,128.61,1.86388543]
[1768914888431,20.75809486,128.65,128.61,1.86388543]
[1768914889037,17.04,128.65,128.61,1.86388543]
[1768914889239,8.83005825,128.66,128.61,1.86388543]
[1768914889446,5.16920053,128.65,128.61,1.86388543]
[1768914890552,8.88729539,128.65,128.61,1.86388543]
[1768914890854,12.55002888,128.65,128.61,1.86388543]
[1768914891743,5.17057791,128.64,128.61,1.86388543]
[1768914892851,12.55039014,128.66,128.61,1.86388543]
[1768914893147,5.17177861,128.65,128.61,3.71809486]
[1768914893351,5.17177861,128.65,128.62,2.01501583]
[1768914893870,4.77970788,128.63,128.59,2.01501583]
[1768914894036,24.81363184,128.64,128.59,2.01501583]
[1768914894236,5.1711919,128.63,128.59,2.01501583]
[1768914895331,12.94551289,128.63,128.59,2.01501583]
[1768914895531,7.77432099,128.63,128.59,2.01501583]
[1768914900158,7.77432099,128.63,128.6,2.01501583]
[1768914900462,24.81381172,128.64,128.6,2.01501583]
[1768914901048,7.77381172,128.64,128.6,2.01501583]
[1768914901643,7.77381172,128.64,128.6,5.73311069]
[1768914901870,1.06669716,128.64,128.6,2.01501583]
[1768914902164,6.23344218,128.64,128.6,2.01501583]
[1768914902380,9.95153704,128.64,128.6,2.01501583]
[1768914902581,4.78479202,128.64,128.6,2.01501583]
[1768914902785,1.06730028,128.63,128.59,2.01501583]
[1768914902943,4.78539514,128.63,128.59,2.01501583]
[1768914903845,8.84193125,128.63,128.59,2.01501583]
[1768914904762,7.77463097,128.63,128.59,2.01501583]
[1768914906342,12.56041494,128.64,128.59,2.01501583]
[1768914906552,5.1706134,128.63,128.59,2.01501583]
[1768914906758,5.1706134,128.63,128.59,5.73311069]
[1768914907368,6.24082691,128.63,128.59,2.01501583]
[1768914907539,6.24082691,128.63,128.59,2.21658403]
[1768914908563,5.1706134,128.63,128.59,2.21658403]
[1768914909356,5.1706134,128.63,128.6,2.01501583]
[1768914909556,18.11133249,128.66,128.62,2.01501583]
[1768914909759,4.81942732,128.64,128.59,0.2015682]
[1768914909963,5.16945261,128.63,128.59,0.2015682]
[1768914910166,5.16945261,128.63,128.59,3.91966306]
[1768914911553,8.87508256,128.64,128.59,3.91966306]
[1768914911754,5.16892747,128.63,128.6,2.01501583]
[1768914912265,8.87508256,128.64,128.6,2.01501583]
[1768914913445,8.87676672,128.65,128.6,2.01501583]
[1768914913645,5.16973178,128.64,128.6,2.01501583]
[1768914914549,9.99184602,128.64,128.6,2.01501583]
[1768914914764,5.16921211,128.63,128.6,2.01501583]
[1768914915252,8.87973434,128.62,128.59,0.2015682]
[1768914915767,1.10451907,128.64,128.59,5.93467889]
[1768914915973,1.10451907,128.64,128.6,2.01501583]
[1768914916158,9.99189368,128.64,128.6,2.01501583]
[1768914916361,5.16927975,128.63,128.6,2.01501583]
[1768914916882,12.59644796,128.64,128.6,2.01501583]
[1768914917088,11.49143272,128.65,128.61,2.01501583]
[1768914917373,5.17175148,128.64,128.61,2.01501583]
[1768914917754,5.37405238,128.63,128.61,2.01501583]
[1768914917957,28.53073195,128.66,128.62,2.01501583]
[1768914918161,10.54760057,128.65,128.64,2.01501583]
[1768914918366,8.8774865,128.68,128.64,1.98501587]
[1768914918666,5.17545989,128.67,128.64,1.98501587]
[1768914919463,1.10598394,128.68,128.64,3.71803156]
[1768914919667,6.28205557,128.68,128.64,3.71803156]
[1768914920472,6.28205557,128.68,128.65,2.01501583]
[1768914921171,14.05351788,128.68,128.64,2.01501583]
[1768914921358,5.17607163,128.67,128.64,2.01501583]
[1768914922880,5.17607163,128.67,128.64,2.21658403]
[1768914923784,8.87747489,128.68,128.64,2.21658403]
[1768914924075,5.17702151,128.67,128.64,2.21658403]
[1768914924474,5.17702151,128.67,128.65,2.00464757]
[1768914924775,13.45960113,128.69,128.65,2.00464757]
[1768914925075,5.17628076,128.68,128.65,2.00464757]
[1768914929571,5.17628076,128.68,128.66,2.00464757]
[1768914929875,1.9706999,128.69,128.66,1.97464757]
[1768914930080,7.14188601,128.69,128.66,1.97464757]
[1768914933281,7.14188601,128.69,128.66,5.69267913]
[1768914933681,7.14188601,128.69,128.67,2.00464757]